bitfinex/quotes_BTCUSD_20250808
["timestamp","ask_amount","ask_price","bid_price","bid_amount"]
[1754668042461,0.18230561,116120.0,116110.0,0.76820025]
[1754668042677,0.01007,116120.0,116110.0,0.78564927]
[1754668043117,0.01007,116120.0,116110.0,0.76820025]
[1754668043332,0.18230561,116120.0,116110.0,0.78564927]
[1754668043560,0.18230561,116120.0,116110.0,0.26111256]
[1754668043774,0.18230561,116120.0,116110.0,0.40251256]
[1754668044517,0.18130561,116120.0,116110.0,0.40151256]
[1754668044765,0.01007,116120.0,116110.0,0.40251256]
[1754668044989,0.00607,116120.0,116110.0,0.40151256]
[1754668045527,0.00607,116120.0,116110.0,0.40051256]
[1754668045724,0.00707,116120.0,116110.0,0.40251256]
[1754668046665,0.00707,116120.0,116110.0,0.41996158]
[1754668047245,0.00807,116120.0,116110.0,0.62096158]
[1754668048815,0.18030561,116120.0,116110.0,0.62096158]
[1754668049026,0.00807,116120.0,116110.0,0.62096158]
[1754668049882,0.18030561,116120.0,116110.0,0.62096158]
[1754668050929,0.00807,116120.0,116110.0,0.62096158]
[1754668052864,0.18030561,116120.0,116110.0,0.62096158]
[1754668053291,0.00807,116120.0,116110.0,0.62096158]
[1754668054031,0.18030561,116120.0,116110.0,0.62096158]
[1754668054244,0.00807,116120.0,116110.0,0.62096158]
[1754668054498,0.18030561,116120.0,116110.0,0.62096158]
[1754668054717,0.18030561,116120.0,116110.0,0.28986211]
[1754668054963,0.18030561,116120.0,116110.0,0.43118211]
[1754668055197,0.21555834,116120.0,116110.0,0.203]
[1754668055428,0.18828968,116120.0,116110.0,0.203]
[1754668055640,0.35416968,116120.0,116110.0,0.203]
[1754668056060,0.35216968,116120.0,116110.0,0.201]
[1754668056489,0.35516968,116120.0,116110.0,0.202]
[1754668056906,0.35216968,116120.0,116110.0,0.201]
[1754668057122,0.35616968,116120.0,116110.0,0.202]
[1754668057332,0.35516968,116120.0,116110.0,0.201]
[1754668057770,0.35716968,116120.0,116110.0,0.202]
[1754668058177,0.35516968,116120.0,116110.0,0.201]
[1754668058615,0.35816968,116120.0,116110.0,0.202]
[1754668058850,0.33360968,116120.0,116110.0,0.202]
[1754668059054,0.19228968,116120.0,116110.0,0.202]
[1754668059501,0.18430561,116120.0,116110.0,0.202]
[1754668059702,0.21018061,116120.0,116110.0,0.202]
[1754668060097,0.19229064,116120.0,116110.0,0.202]
[1754668060309,0.18430561,116120.0,116110.0,0.202]
[1754668060967,0.18430561,116120.0,116110.0,0.34332]
[1754668063146,0.17923561,116120.0,116110.0,0.60448256]
[1754668063641,0.18218561,116120.0,116110.0,0.60448256]
[1754668063875,0.18430561,116120.0,116110.0,0.60448256]
[1754668064342,0.18430561,116120.0,116110.0,0.28886211]
[1754668068027,0.18430561,116120.0,116110.0,0.29091211]
[1754668068679,0.18430561,116120.0,116110.0,0.95013151]
[1754668069106,0.007,116120.0,116110.0,0.95013151]
[1754668069796,0.007,116120.0,116110.0,0.95197151]
[1754668070022,0.17222165,116130.0,116120.0,0.17223561]
[1754668070256,0.1837683,116140.0,116120.0,0.88939667]
[1754668070473,0.17222078,116130.0,116120.0,0.80253456]
[1754668070711,0.17729078,116130.0,116120.0,0.08686211]
[1754668070926,0.17223561,116120.0,116110.0,0.2]
[1754668071143,0.17526561,116120.0,116110.0,0.42914211]
[1754668071363,0.17821561,116120.0,116110.0,0.2879843]
[1754668072002,0.17821561,116120.0,116110.0,0.20112219]
[1754668072431,0.17721561,116120.0,116110.0,0.20012219]
[1754668073078,0.17821561,116120.0,116110.0,0.20112219]
[1754668073750,0.18021561,116120.0,116110.0,0.20212219]
[1754668076056,0.17721561,116120.0,116110.0,0.20012219]
[1754668076487,0.18221561,116120.0,116110.0,0.20212219]
[1754668076696,0.20809161,116120.0,116110.0,0.20212219]
[1754668078450,0.18221561,116120.0,116110.0,0.20212219]
[1754668078689,0.20809261,116120.0,116110.0,0.20212219]
[1754668078903,0.18221561,116120.0,116110.0,0.20212219]
[1754668079310,0.20809261,116120.0,116110.0,0.20212219]
[1754668079511,0.18221561,116120.0,116110.0,0.20212219]
[1754668084144,0.17723561,116120.0,116110.0,0.86333159]
[1754668084577,0.17723561,116120.0,116110.0,0.69108114]
[1754668084795,0.17723561,116120.0,116110.0,0.69292114]
[1754668084998,0.17723561,116120.0,116110.0,0.69108114]
[1754668085217,0.17723561,116120.0,116110.0,1.29091132]
[1754668085218,0.005,116120.0,116110.0,1.29091132]
[1754668085388,0.005,116120.0,116110.0,1.02151132]
[1754668085602,0.005,116120.0,116110.0,1.09868677]
[1754668085809,0.005,116120.0,116110.0,1.40908579]
[1754668086011,0.005,116120.0,116110.0,1.13968579]
[1754668086378,0.005,116120.0,116110.0,1.06251034]
[1754668086595,0.005,116120.0,116110.0,1.17078072]
[1754668086801,0.17217654,116160.0,116140.0,0.17219397]
[1754668087003,0.17217654,116160.0,116150.0,0.80231008]
[1754668087209,0.17217654,116160.0,116150.0,0.63011895]
[1754668087597,0.17217654,116160.0,116150.0,0.80231008]
[1754668088281,0.17217654,116160.0,116150.0,0.63024114]
[1754668088703,0.17517654,116160.0,116150.0,0.63024114]
[1754668089136,0.17517654,116160.0,116150.0,0.88929438]
[1754668089352,0.17217654,116160.0,116150.0,0.88929438]
[1754668089575,0.17917654,116160.0,116150.0,0.89129438]
[1754668089992,0.17917654,116160.0,116150.0,0.71910325]
[1754668090635,0.17917654,116160.0,116150.0,0.89129438]
[1754668091446,0.17917654,116160.0,116150.0,0.71910325]
[1754668091646,0.17917654,116160.0,116150.0,0.89129438]
[1754668092076,0.17917654,116160.0,116150.0,0.2321343]
[1754668093500,0.17917654,116160.0,116150.0,0.71910325]
[1754668094120,0.17917654,116160.0,116150.0,0.2321343]
[1754668094344,0.17917654,116160.0,116150.0,0.71910325]
[1754668094568,0.17917654,116160.0,116150.0,0.57794325]
[1754668094790,0.18415654,116160.0,116150.0,0.0889843]
[1754668095889,0.18415654,116160.0,116150.0,0.0909743]
[1754668096971,0.18415654,116160.0,116150.0,0.3603743]
[1754668097695,0.18415654,116160.0,116150.0,0.84734325]
[1754668098041,0.18415654,116160.0,116150.0,0.3603743]
[1754668101914,0.18415654,116160.0,116150.0,0.00212219]
[1754668102131,0.52415654,116160.0,116150.0,0.00212219]
[1754668102802,0.52415654,116160.0,116150.0,0.20212219]
[1754668113698,0.52415654,116160.0,116150.0,0.57616227]
[1754668114134,0.52415654,116160.0,116150.0,0.57826227]
[1754668115674,0.52415654,116160.0,116150.0,0.57616227]
[1754668117598,0.52415654,116160.0,116150.0,0.84556227]
[1754668120631,0.52415654,116160.0,116150.0,0.47152219]
[1754668120840,0.43145654,116160.0,116150.0,0.84556227]
[1754668124336,0.43145654,116160.0,116150.0,0.47152219]
[1754668124549,0.43145654,116160.0,116150.0,0.84556227]
[1754668124964,0.43149654,116160.0,116150.0,0.84556227]
[1754668125378,0.43149654,116160.0,116150.0,0.47152219]
[1754668126203,0.43149654,116160.0,116150.0,0.84556227]
[1754668126890,0.43149654,116160.0,116150.0,0.47152219]
[1754668127079,0.42749654,116160.0,116150.0,0.47052219]
[1754668127734,0.43049654,116160.0,116150.0,0.47152219]
[1754668128083,0.43049654,116160.0,116150.0,0.84556227]
[1754668129381,0.43049654,116160.0,116150.0,0.57616227]
[1754668129829,0.43049654,116160.0,116150.0,0.57826227]
[1754668131055,0.43049654,116160.0,116150.0,0.57616227]
[1754668132090,0.42749654,116160.0,116150.0,0.57516227]
[1754668132300,0.43049654,116160.0,116150.0,0.57616227]
[1754668134566,0.43049654,116160.0,116150.0,0.57820227]
[1754668135562,0.42547654,116160.0,116150.0,0.7503934]
[1754668138100,0.42547654,116160.0,116150.0,0.8910734]
[1754668139834,0.42547654,116160.0,116150.0,0.57820227]
[1754668140055,0.43043654,116160.0,116150.0,0.20212219]
[1754668142267,0.43023654,116160.0,116150.0,0.20212219]
[1754668142482,0.43023654,116160.0,116150.0,0.20192219]
[1754668148967,0.43023654,116160.0,116150.0,0.57596227]
[1754668151531,0.57075654,116160.0,116150.0,0.57800227]
[1754668152012,0.56878654,116160.0,116150.0,0.7501934]
[1754668152294,0.42527654,116160.0,116150.0,0.7501934]
[1754668152506,0.006,116160.0,116150.0,0.37799332]
[1754668152757,0.006,116160.0,116150.0,1.12607348]
[1754668153257,0.006,116160.0,116150.0,1.0214334]
[1754668153489,0.1781763,116160.0,116150.0,0.84924227]
[1754668153713,0.1781763,116160.0,116150.0,0.84740227]
[1754668153931,0.1721763,116160.0,116150.0,0.84540227]
[1754668154151,0.1741763,116160.0,116150.0,0.84640227]
[1754668154397,0.1761763,116160.0,116150.0,0.84740227]
[1754668154875,0.1759763,116160.0,116150.0,0.84740227]
[1754668155091,0.1757763,116160.0,116150.0,0.84740227]
[1754668155545,0.1757763,116160.0,116150.0,1.0193934]
[1754668155770,0.1757763,116160.0,116150.0,0.84700227]
[1754668155993,0.1755763,116160.0,116150.0,1.0191934]
[1754668156419,0.1753763,116160.0,116150.0,1.0191934]
[1754668156883,0.1753763,116160.0,116150.0,1.0189934]
[1754668157077,0.1753763,116160.0,116150.0,1.0187934]
[1754668157323,0.1751763,116160.0,116150.0,1.0187934]
[1754668157765,0.1751763,116160.0,116150.0,0.84640227]
[1754668158426,0.1751763,116160.0,116150.0,0.47236219]
[1754668158641,0.1751763,116160.0,116150.0,1.0185934]
[1754668159080,0.1751763,116160.0,116150.0,0.84640227]
[1754668160659,0.1749763,116160.0,116150.0,0.84640227]
[1754668160874,0.1749763,116160.0,116150.0,0.84620227]
[1754668161293,0.1749763,116160.0,116150.0,0.98660227]
[1754668163414,0.3206563,116160.0,116150.0,0.47012219]
[1754668163626,0.6606563,116160.0,116150.0,0.47012219]
[1754668165039,0.6606563,116160.0,116150.0,0.71512227]
[1754668165408,0.6606563,116160.0,116150.0,0.71720227]
[1754668165621,0.6553763,116160.0,116150.0,0.71720227]
[1754668165842,0.5149763,116160.0,116150.0,0.71720227]
[1754668166482,0.5149763,116160.0,116150.0,0.8893934]
[1754668166684,0.5149763,116160.0,116150.0,0.71720227]
[1754668166879,0.5147763,116160.0,116150.0,0.71720227]
[1754668170094,0.004,116160.0,116150.0,1.35029559]
[1754668170292,0.004,116160.0,116150.0,1.35213559]
[1754668170866,0.004,116160.0,116150.0,1.62153559]
[1754668171123,0.1761763,116160.0,116150.0,1.62153559]
[1754668171437,0.004,116160.0,116150.0,1.62153559]
[1754668171781,0.1761763,116160.0,116150.0,1.62153559]
[1754668172193,0.004,116160.0,116150.0,1.62153559]
[1754668172555,0.004,116160.0,116150.0,1.62133559]
[1754668173730,0.0038,116160.0,116150.0,1.62133559]
[1754668174776,0.1759763,116160.0,116150.0,1.62133559]
[1754668175190,0.0038,116160.0,116150.0,1.62133559]
[1754668175728,0.1759763,116160.0,116150.0,1.62133559]
[1754668175935,0.1759763,116160.0,116150.0,1.24545551]
[1754668179154,0.1759763,116160.0,116150.0,1.24525551]
[1754668181977,0.1759763,116160.0,116150.0,1.61929559]
[1754668182180,0.1759763,116160.0,116150.0,0.87121543]
[1754668182380,0.1759763,116160.0,116150.0,1.61929559]
[1754668182812,0.1759763,116160.0,116150.0,1.24525551]
[1754668183033,0.1759763,116160.0,116150.0,1.61929559]
[1754668183638,0.0038,116160.0,116150.0,1.61929559]
[1754668183805,0.1759763,116160.0,116150.0,1.61929559]
[1754668184015,0.0038,116160.0,116150.0,1.61929559]
[1754668184691,0.0038,116160.0,116150.0,1.34989559]
[1754668185095,0.0038,116160.0,116150.0,1.35173559]
[1754668186229,0.0038,116160.0,116150.0,1.34989559]
[1754668189755,0.0038,116160.0,116150.0,1.42736026]
[1754668191052,0.0038,116160.0,116150.0,1.74322469]
[1754668191264,0.0038,116160.0,116150.0,2.12089507]
[1754668191464,0.0038,116160.0,116150.0,1.74685499]
[1754668191670,0.0038,116160.0,116150.0,1.63858461]
[1754668191880,0.0038,116160.0,116150.0,1.7469627]
[1754668192101,0.0002947,116160.0,116150.0,1.63858461]
[1754668192529,0.18275062,116210.0,116150.0,1.63858461]
[1754668192530,0.00318,116210.0,116200.0,0.17211703]
[1754668192902,0.0002,116210.0,116200.0,0.85235492]
[1754668193528,0.0002,116210.0,116200.0,0.77499922]
[1754668193738,0.00067162,116210.0,116200.0,0.77499922]
[1754668193942,0.00565162,116210.0,116200.0,0.77599922]
[1754668194885,0.00765162,116210.0,116200.0,0.77699922]
[1754668195314,0.00765162,116210.0,116200.0,0.7874471]
[1754668195968,0.00467162,116210.0,116200.0,0.7874471]
[1754668196382,0.00467162,116210.0,116200.0,0.81280246]
[1754668196590,0.00977162,116210.0,116200.0,0.80235458]
[1754668197598,0.00977162,116210.0,116200.0,1.07175458]
[1754668198906,0.18187384,116210.0,116200.0,0.002]
[1754668199167,0.52187384,116210.0,116200.0,0.37604008]
[1754668199357,0.00467162,116210.0,116200.0,0.66266053]
[1754668200235,0.17677384,116210.0,116200.0,0.66266053]
[1754668200470,0.00977162,116210.0,116200.0,0.28862045]
[1754668200693,0.00467162,116210.0,116200.0,0.66266053]
[1754668201561,0.00467162,116210.0,116200.0,0.28862045]
[1754668201781,0.00765162,116210.0,116200.0,0.66266053]
[1754668203506,0.00765162,116210.0,116200.0,0.93206053]
[1754668203707,0.00765162,116210.0,116200.0,1.07186053]
[1754668204757,0.00467162,116210.0,116200.0,1.07186053]
[1754668205132,0.00467162,116210.0,116200.0,0.69782045]
[1754668205338,0.00467162,116210.0,116200.0,1.07186053]
[1754668209498,0.00467162,116210.0,116200.0,0.69782045]
[1754668209728,0.00467162,116210.0,116200.0,1.07186053]
[1754668212245,0.00467162,116210.0,116200.0,0.69782045]
[1754668212475,0.00467162,116210.0,116200.0,1.07186053]
[1754668212721,0.00467162,116210.0,116200.0,1.17650061]
[1754668212946,0.00467162,116210.0,116200.0,1.17834061]
[1754668213183,0.00467162,116210.0,116200.0,1.24781823]
[1754668213373,0.00467162,116210.0,116200.0,1.26526725]
[1754668214125,0.00267162,116210.0,116200.0,1.26426725]
[1754668214348,0.00067162,116210.0,116200.0,1.53266725]
[1754668214570,0.00267162,116210.0,116200.0,1.53266725]
[1754668214811,0.00467162,116210.0,116200.0,1.53366725]
[1754668215990,0.00467162,116210.0,116200.0,1.55951425]
[1754668216210,0.00467162,116210.0,116200.0,1.61102295]
[1754668220337,0.00467162,116210.0,116200.0,1.34162295]
[1754668220762,0.00467162,116210.0,116200.0,1.27214533]
[1754668221423,0.00467162,116210.0,116200.0,1.27203492]
[1754668221637,0.00467162,116210.0,116200.0,1.19478963]
[1754668225633,0.00302,116230.0,116220.0,1.31165668]
[1754668225856,0.00498,116230.0,116220.0,1.24124404]
[1754668226317,0.00498,116230.0,116220.0,0.84975494]
[1754668226534,0.17705261,116230.0,116220.0,0.63298961]
[1754668226758,0.00302,116230.0,116220.0,0.77246961]
[1754668226978,0.17509261,116230.0,116220.0,0.6856075]
[1754668227197,0.17609261,116230.0,116220.0,0.6866075]
[1754668227621,0.00402,116230.0,116220.0,0.6866075]
[1754668227833,0.00402,116230.0,116220.0,0.5471275]
[1754668228051,0.00104,116230.0,116220.0,0.6865675]
[1754668230516,0.00104,116230.0,116220.0,0.31252742]
[1754668230729,0.00104,116230.0,116220.0,0.6865675]
[1754668231566,0.00104,116230.0,116220.0,1.06060758]
[1754668234850,0.00104,116230.0,116220.0,1.06160758]
[1754668237216,0.00104,116230.0,116220.0,1.14846969]
[1754668238336,0.00104,116230.0,116220.0,1.14838969]
[1754668238983,0.00104,116230.0,116220.0,1.22567502]
[1754668241129,0.00104,116230.0,116220.0,1.08631502]
[1754668241339,0.00104,116230.0,116220.0,1.22563502]
[1754668244838,0.00104,116230.0,116220.0,1.14834969]
[1754668245280,0.00104,116230.0,116220.0,1.16579871]
[1754668245491,0.00104,116230.0,116220.0,1.27409669]
[1754668246274,0.00104,116230.0,116220.0,1.64813677]
[1754668246477,0.00104,116230.0,116220.0,1.27409669]
[1754668247719,0.00104,116230.0,116220.0,1.54349669]
[1754668250870,0.00104,116230.0,116220.0,1.43519871]
[1754668251529,0.1808691,116280.0,116270.0,0.17201341]
[1754668251744,0.5208691,116280.0,116270.0,0.68525349]
[1754668252229,0.1858391,116280.0,116270.0,0.68525349]
[1754668252498,0.5258391,116280.0,116270.0,0.68525349]
[1754668252695,0.5258391,116280.0,116270.0,0.5132874]
[1754668253157,0.5497491,116280.0,116270.0,0.13924732]
[1754668253370,0.5517491,116280.0,116270.0,0.13924732]
[1754668254056,0.5497491,116280.0,116270.0,0.5132874]
[1754668254277,0.5517491,116280.0,116270.0,0.5132874]
[1754668254493,0.5517491,116280.0,116270.0,0.3740874]
[1754668254709,0.5537491,116280.0,116270.0,0.3750874]
[1754668254927,0.5517491,116280.0,116270.0,0.3740874]
[1754668255821,0.5537491,116280.0,116270.0,0.3750874]
[1754668257401,0.5537491,116280.0,116270.0,0.00104732]
[1754668257634,0.5537491,116280.0,116270.0,0.3750874]
[1754668259041,0.5537491,116280.0,116270.0,0.00104732]
[1754668259307,0.5537491,116280.0,116270.0,0.3750874]
[1754668262365,0.5298391,116280.0,116270.0,0.3750874]
[1754668265445,0.5298391,116280.0,116270.0,0.00104732]
[1754668265866,0.5298391,116280.0,116270.0,0.3750874]
[1754668266296,0.6688791,116280.0,116270.0,0.3750874]
[1754668268292,0.5298391,116280.0,116270.0,0.3750874]
[1754668268647,0.5298391,116280.0,116270.0,0.6444874]
[1754668271009,0.5298391,116280.0,116270.0,0.3750874]
[1754668271949,0.5298391,116280.0,116270.0,0.54710081]
[1754668272454,0.34917,116280.0,116270.0,0.92323089]
[1754668272707,0.0042,116280.0,116270.0,1.010093]
[1754668273132,0.0042,116280.0,116270.0,1.08748734]
[1754668274584,0.0002,116280.0,116270.0,1.08648734]
[1754668275000,0.0022,116280.0,116270.0,1.08748734]
[1754668275408,0.0022,116280.0,116270.0,0.33940718]
[1754668275608,0.0022,116280.0,116270.0,1.08748734]
[1754668277153,0.0022,116280.0,116270.0,1.08932734]
[1754668278058,0.0022,116280.0,116270.0,1.08748734]
[1754668280357,0.0022,116280.0,116270.0,1.22632734]
[1754668281068,0.17859887,116280.0,116270.0,0.08790943]
[1754668281283,0.17859887,116280.0,116270.0,0.5138874]
[1754668282861,0.17859887,116280.0,116270.0,0.68590081]
[1754668283097,0.17859887,116280.0,116270.0,0.5138874]
[1754668284903,0.17859887,116280.0,116270.0,0.00104732]
[1754668285112,0.17859887,116280.0,116270.0,0.13980732]
[1754668286260,0.17859887,116280.0,116270.0,0.40920732]
[1754668289155,0.17859887,116280.0,116270.0,0.7832474]
[1754668289553,0.17859887,116280.0,116270.0,0.40920732]
[1754668289906,0.17859887,116280.0,116270.0,0.7832474]
[1754668291481,0.17859887,116280.0,116270.0,0.40920732]
[1754668291935,0.17859887,116280.0,116270.0,0.00104732]
[1754668291936,0.51859887,116280.0,116270.0,0.00104732]
[1754668292142,0.60546098,116280.0,116270.0,0.00104732]
[1754668292804,0.62720098,116280.0,116270.0,4.732e-05]
[1754668293016,0.62857073,116280.0,116270.0,0.00104732]
[1754668293222,0.63057073,116280.0,116270.0,0.00104732]
[1754668293429,0.62857073,116280.0,116270.0,4.732e-05]
[1754668293638,0.63057073,116280.0,116270.0,0.00104732]
[1754668294039,0.63357073,116280.0,116270.0,0.00104732]
[1754668294482,0.72036498,116280.0,116270.0,0.00104732]
[1754668294712,0.762814,116280.0,116270.0,0.00104732]
[1754668295617,0.67601975,116280.0,116270.0,0.00104732]
[1754668297041,0.67601975,116280.0,116270.0,1e-08]
[1754668297249,0.70101975,116280.0,116270.0,1e-08]
[1754668297491,0.70901728,116280.0,116270.0,1e-08]
[1754668298306,0.70901728,116280.0,116250.0,0.07047762]
[1754668298307,0.17202821,116260.0,116250.0,0.07047762]
[1754668298491,0.39953032,116260.0,116250.0,0.07047762]
[1754668298924,0.42858932,116260.0,116250.0,0.07047762]
[1754668299765,0.43158932,116260.0,116250.0,0.07147762]
[1754668300180,0.43358932,116260.0,116250.0,0.07247762]
[1754668303918,0.20812721,116260.0,116250.0,0.4465177]
[1754668304101,0.20287721,116260.0,116250.0,0.4486577]
[1754668304255,0.20287721,116260.0,116250.0,0.07461762]
[1754668304471,0.34668721,116260.0,116250.0,0.07247762]
[1754668306095,0.34668721,116260.0,116250.0,0.003]
[1754668307047,0.20812721,116260.0,116250.0,0.003]
[1754668307309,0.34668721,116260.0,116250.0,0.003]
[1754668308862,0.34668721,116260.0,116250.0,0.20132219]
[1754668310716,0.34668721,116260.0,116250.0,0.20346219]
[1754668310918,0.34668721,116260.0,116250.0,0.57750227]
[1754668311585,0.34464721,116260.0,116250.0,0.57750227]
[1754668311800,0.34675721,116260.0,116250.0,0.57750227]
[1754668311974,0.34675721,116260.0,116250.0,0.20132219]
[1754668312948,0.43361932,116260.0,116250.0,0.20132219]
[1754668317459,0.43345932,116260.0,116250.0,0.20132219]
[1754668323226,0.44148009,116260.0,116250.0,0.20132219]
[1754668323441,0.43345932,116260.0,116250.0,0.20132219]
[1754668324103,0.44148322,116260.0,116250.0,0.20132219]
[1754668328027,0.43937322,116260.0,116250.0,0.27289981]
[1754668328862,0.44148322,116260.0,116250.0,0.27289981]
[1754668329116,0.44148322,116260.0,116250.0,0.27079981]
[1754668329853,0.44148322,116260.0,116250.0,0.20132219]
[1754668331188,0.44148661,116260.0,116250.0,0.20132219]
[1754668332230,0.44148661,116260.0,116250.0,0.20342219]
[1754668334165,0.29776661,116260.0,116250.0,0.64693989]
[1754668334388,0.34111721,116260.0,116250.0,0.64693989]
[1754668334609,0.34111721,116260.0,116250.0,0.64877989]
[1754668335878,0.31526821,116260.0,116250.0,0.64877989]
[1754668336316,0.51702821,116260.0,116250.0,1.19486298]
[1754668336518,0.005,116260.0,116250.0,1.19486298]
[1754668336867,0.005,116260.0,116250.0,1.33306298]
[1754668337729,0.002,116260.0,116250.0,1.33206298]
[1754668337981,0.001,116260.0,116250.0,1.33306298]
[1754668338182,0.002,116260.0,116250.0,1.33306298]
[1754668338635,0.17302821,116260.0,116250.0,1.33306298]
[1754668339075,0.17302821,116260.0,116250.0,1.33406298]
[1754668339541,0.17302821,116260.0,116250.0,1.60346298]
[1754668342497,0.001,116260.0,116250.0,1.60346298]
[1754668342695,0.001,116260.0,116250.0,1.69032509]
[1754668343519,0.001,116260.0,116250.0,1.62084747]
[1754668344338,0.17302821,116260.0,116250.0,0.87276731]
[1754668344582,0.17302821,116260.0,116250.0,1.07292438]
[1754668345315,0.17302821,116260.0,116250.0,0.84786227]
[1754668345539,0.31110821,116260.0,116250.0,0.47382219]
[1754668345763,0.31110821,116260.0,116250.0,0.84786227]
[1754668345980,0.31110821,116260.0,116250.0,0.57846227]
[1754668346180,0.31405821,116260.0,116250.0,0.57846227]
[1754668347237,0.31405821,116260.0,116250.0,0.20442219]
[1754668347506,0.31405821,116260.0,116250.0,0.57846227]
[1754668347725,0.31401821,116260.0,116250.0,0.57846227]
[1754668347973,0.31401821,116260.0,116250.0,0.20442219]
[1754668348425,0.31401821,116260.0,116250.0,0.57846227]
[1754668348687,0.31401821,116260.0,116250.0,0.20442219]
[1754668348898,0.31401821,116260.0,116250.0,0.57846227]
[1754668349958,0.31106821,116260.0,116250.0,0.57846227]
[1754668351990,0.31106821,116260.0,116250.0,0.20442219]
[1754668352205,0.31106821,116260.0,116250.0,0.57846227]
[1754668353511,0.31106821,116260.0,116250.0,0.75050528]
[1754668353773,0.17302821,116260.0,116250.0,0.75050528]
[1754668353968,0.17302821,116260.0,116250.0,0.57846227]
[1754668354659,0.17795821,116260.0,116250.0,0.20232219]
[1754668355605,0.17795821,116260.0,116250.0,0.57636227]
[1754668356566,0.17795821,116260.0,116250.0,0.20232219]
[1754668356778,0.17795821,116260.0,116250.0,0.57636227]
[1754668357185,0.17795821,116260.0,116250.0,0.57851227]
[1754668357394,0.17302821,116260.0,116250.0,0.57851227]
[1754668358597,0.17302821,116260.0,116250.0,0.75055528]
[1754668359007,0.001,116260.0,116250.0,1.12459536]
[1754668359441,0.001,116260.0,116250.0,1.21329747]
[1754668360520,0.001,116260.0,116250.0,1.32164954]
[1754668361392,0.001,116260.0,116250.0,1.21329747]
[1754668362530,0.17101353,116270.0,116260.0,0.17202821]
[1754668362805,0.17101353,116270.0,116260.0,0.7729604]
[1754668363861,0.17101353,116270.0,116260.0,0.42423938]
[1754668364066,0.17101353,116270.0,116260.0,0.79827946]
[1754668364277,0.17201353,116270.0,116260.0,0.79827946]
[1754668364983,0.17794353,116270.0,116260.0,0.62510125]
[1754668365201,0.17794353,116270.0,116260.0,0.51292008]
[1754668366261,0.31574353,116270.0,116260.0,0.51284008]
[1754668367744,0.31574353,116270.0,116260.0,0.1388]
[1754668367959,0.31574353,116270.0,116260.0,0.51284008]
[1754668368185,0.31574353,116270.0,116260.0,0.001]
[1754668368409,0.65574353,116270.0,116260.0,0.001]
[1754668368644,0.74260564,116270.0,116260.0,0.001]
[1754668370173,0.76845064,116270.0,116260.0,0.001]
[1754668370753,0.76745064,116270.0,116260.0,0.001]
[1754668371126,0.77045064,116270.0,116260.0,0.002]
[1754668371870,0.76945064,116270.0,116260.0,0.001]
[1754668372520,0.77245064,116270.0,116260.0,0.002]
[1754668375621,0.77245064,116270.0,116260.0,0.20032219]
[1754668394021,0.77245064,116270.0,116260.0,0.20246219]
[1754668395706,0.77245064,116270.0,116260.0,0.20032219]
[1754668396269,0.76752064,116270.0,116260.0,0.57650227]
[1754668396481,0.76752064,116270.0,116260.0,0.57750227]
[1754668396703,0.62972064,116270.0,116260.0,0.57750227]
[1754668396908,0.76720064,116270.0,116260.0,0.57750227]
[1754668397148,0.77015064,116270.0,116260.0,0.20346219]
[1754668397716,0.76720064,116270.0,116260.0,0.20346219]
[1754668398406,0.77015064,116270.0,116260.0,0.20346219]
[1754668399947,0.77224064,116270.0,116260.0,0.20346219]
[1754668403320,0.77216064,116270.0,116260.0,0.57750227]
[1754668404109,0.76712064,116270.0,116260.0,0.57750227]
[1754668404924,0.54285853,116270.0,116260.0,0.57934227]
[1754668405130,0.65441353,116270.0,116260.0,0.57934227]
[1754668405900,0.65441353,116270.0,116260.0,0.57750227]
[1754668406286,0.65949353,116270.0,116260.0,0.57750227]
[1754668406495,0.65949353,116270.0,116260.0,0.20346219]
[1754668407136,0.65945353,116270.0,116260.0,0.20346219]
[1754668407338,0.52209353,116270.0,116260.0,0.20346219]
[1754668407546,0.65735353,116270.0,116260.0,0.57750227]
[1754668407884,0.65437353,116270.0,116260.0,0.20346219]
[1754668408101,0.65437353,116270.0,116260.0,0.57750227]
[1754668409805,0.65437353,116270.0,116260.0,0.20346219]
[1754668410030,0.65735353,116270.0,116260.0,0.57750227]
[1754668411652,0.65945353,116270.0,116260.0,0.57750227]
[1754668413941,0.65735353,116270.0,116260.0,0.57750227]
[1754668414156,0.65437353,116270.0,116260.0,0.57750227]
[1754668414809,0.51701353,116270.0,116260.0,0.57750227]
[1754668415026,0.17801341,116270.0,116260.0,0.75137048]
[1754668415256,0.006,116270.0,116260.0,1.1511193]
[1754668415482,0.006,116270.0,116260.0,1.23798141]
[1754668415693,0.006,116270.0,116260.0,0.86394133]
[1754668415943,0.17801341,116270.0,116260.0,0.86394133]
[1754668418303,0.006,116270.0,116260.0,0.86394133]
[1754668418507,0.17801341,116270.0,116260.0,0.86394133]
[1754668418699,0.006,116270.0,116260.0,0.86394133]
[1754668424282,0.006,116270.0,116260.0,1.00110133]
[1754668424868,0.006,116270.0,116260.0,0.62706125]
[1754668425074,0.006,116270.0,116260.0,1.00110133]
[1754668425229,0.006,116270.0,116260.0,1.64454141]
[1754668425827,0.006,116270.0,116260.0,1.66750141]
[1754668426468,0.003,116270.0,116260.0,1.77485348]
[1754668426898,0.003,116270.0,116260.0,1.77585348]
[1754668427325,0.10648799,116280.0,116270.0,0.17201341]
[1754668427536,0.10648799,116280.0,116270.0,1.14611568]
[1754668427718,0.10648799,116280.0,116270.0,1.14795568]
[1754668428781,0.10748799,116280.0,116270.0,1.14895568]
[1754668429190,0.10848799,116280.0,116270.0,1.14895568]
[1754668430937,0.10848799,116280.0,116270.0,1.4878333]
[1754668434513,0.10848799,116280.0,116270.0,1.50528232]
[1754668435142,0.10848799,116280.0,116270.0,1.53111432]
[1754668435342,0.10848799,116280.0,116270.0,0.78303416]
[1754668435564,0.10848799,116280.0,116270.0,1.53111432]
[1754668435783,0.10848799,116280.0,116270.0,1.41651568]
[1754668436200,0.10848799,116280.0,116270.0,1.27939568]
[1754668436347,0.10848799,116280.0,116270.0,1.41639568]
[1754668436542,0.28542661,116280.0,116270.0,1.0403156]
[1754668436994,0.11342799,116280.0,116270.0,0.66627552]
[1754668437191,0.11342799,116280.0,116270.0,1.0403156]
[1754668437975,0.11342799,116280.0,116270.0,1.14711568]
[1754668438187,0.28542661,116280.0,116270.0,0.39687552]
[1754668438391,0.28542661,116280.0,116270.0,0.7709156]
[1754668438595,0.11342799,116280.0,116270.0,0.7709156]
[1754668438978,0.28542661,116280.0,116270.0,0.7709156]
[1754668439200,0.11342799,116280.0,116270.0,0.7709156]
[1754668439676,0.10848799,116280.0,116270.0,1.14711568]
[1754668440299,0.28542661,116280.0,116270.0,0.7709156]
[1754668440535,0.11342799,116280.0,116270.0,0.7709156]
[1754668442157,0.28542661,116280.0,116270.0,0.7725956]
[1754668442812,0.28542661,116280.0,116270.0,0.39855552]
[1754668443014,0.28542661,116280.0,116270.0,0.7725956]